[Event "January 9 Early 2024"]
[Site "https://www.chess.com"]
[Date "2024.01.11"]
[Round "2"]
[White "Sipila, Vilka"]
[Black "Van Foreest, Jorden"]
[Result "0-1"]
[Board "190"]
[TimeControl "180+1"]
[WhiteFideId "505455"]
[BlackFideId "1039784"]
[WhiteElo "2655"]
[BlackElo "3020"]
[WhiteTeam "FIN"]
[BlackTeam "NED"]
[WhiteClock "0:00:01"]
[BlackClock "0:00:14"]

1. b3 {[%clk 0:03:00]}  g6 {[%clk 0:02:59]} 2. Bb2 {[%clk 0:03:01]}  Nf6 {[%clk 0:02:59]} 3. Nf3 {[%clk 0:03:02]}  d6 {[%clk 0:02:58]} 4. d4 {[%clk 0:03:01]}  b5 {[%clk 0:02:55]} 5. d5 {[%clk 0:02:52]}  Bg7 {[%clk 0:02:51]} 6. e4 {[%clk 0:02:52]}  a6 {[%clk 0:02:48]} 7. a4 {[%clk 0:02:49]}  O-O {[%clk 0:02:40]} 8. Nbd2 {[%clk 0:02:46]}  b4 {[%clk 0:02:38]} 9. a5 {[%clk 0:02:41]}  c6 {[%clk 0:02:37]} 10. dxc6 {[%clk 0:02:28]}  Nxc6 {[%clk 0:02:38]} 11. Nc4 {[%clk 0:02:28]}  Bb7 {[%clk 0:02:23]} 12. Bd3 {[%clk 0:02:25]}  Nd7 {[%clk 0:02:20]} 13. Bxg7 {[%clk 0:02:24]}  Kxg7 {[%clk 0:02:21]} 14. h4 {[%clk 0:02:07]}  Nce5 {[%clk 0:02:18]} 15. h5 {[%clk 0:02:05]}  Nxc4 {[%clk 0:02:18]} 16. Bxc4 {[%clk 0:01:35]}  Nf6 {[%clk 0:02:18]} 17. e5 {[%clk 0:01:25]}  dxe5 {[%clk 0:02:16]} 18. Nxe5 {[%clk 0:01:26]}  Qc7 {[%clk 0:02:06]} 19. Qe2 {[%clk 0:01:19]}  Be4 {[%clk 0:01:55]} 20. f4 {[%clk 0:01:12]}  Rad8 {[%clk 0:01:50]} 21. O-O {[%clk 0:01:05]}  Bb7 {[%clk 0:01:39]} 22. h6+ {[%clk 0:00:59]}  Kg8 {[%clk 0:01:27]} 23. Bxa6 {[%clk 0:00:58]}  Qc5+ {[%clk 0:01:20]} 24. Kh1 {[%clk 0:00:55]}  Ne4 {[%clk 0:01:18]} 25. Kh2 {[%clk 0:00:38]}  Rd2 {[%clk 0:01:09]} 26. Qc4 {[%clk 0:00:38]}  Bxa6 {[%clk 0:00:47]} 27. Qxa6 {[%clk 0:00:37]}  Qxc2 {[%clk 0:00:45]} 28. Rg1 {[%clk 0:00:36]}  Rd4 {[%clk 0:00:34]} 29. Qf1 {[%clk 0:00:30]}  Nd2 {[%clk 0:00:31]} 30. Qf2 {[%clk 0:00:28]}  Qe4 {[%clk 0:00:20]} 31. a6 {[%clk 0:00:12]}  Nxb3 {[%clk 0:00:21]} 32. Ra4 {[%clk 0:00:06]}  f6 {[%clk 0:00:19]} 33. Re1 {[%clk 0:00:03]}  Qd5 {[%clk 0:00:15]} 34. Nf3 {[%clk 0:00:02]}  Rxf4 {[%clk 0:00:16]} 35. a7 {[%clk 0:00:01]}  Nc5 {[%clk 0:00:17]} 36. Ra5 {[%clk 0:00:01]}  Rf5 {[%clk 0:00:14]} 0-1

[Event "January 9 Early 2024"]
[Site "https://www.chess.com"]
[Date "2024.01.11"]
[Round "2"]
[White "Christiansen, Johan-Sebastian"]
[Black "Aadit Bhatia"]
[Result "1-0"]
[Board "191"]
[TimeControl "180+1"]
[WhiteFideId "1512668"]
[BlackFideId "25088955"]
[WhiteElo "2885"]
[BlackElo "2417"]
[WhiteTeam "NOR"]
[BlackTeam "IND"]
[WhiteClock "0:00:48"]
[BlackClock "0:00:01"]

1. e4 {[%clk 0:03:00]}  e5 {[%clk 0:02:57]} 2. Nf3 {[%clk 0:03:01]}  Nc6 {[%clk 0:02:57]} 3. Nc3 {[%clk 0:03:02]}  Nf6 {[%clk 0:02:57]} 4. a3 {[%clk 0:03:02]}  d6 {[%clk 0:02:51]} 5. d4 {[%clk 0:03:02]}  Bg4 {[%clk 0:02:46]} 6. d5 {[%clk 0:03:03]}  Ne7 {[%clk 0:02:45]} 7. h3 {[%clk 0:02:55]}  Bd7 {[%clk 0:02:43]} 8. Be3 {[%clk 0:02:52]}  h6 {[%clk 0:02:35]} 9. g4 {[%clk 0:02:52]}  Ng6 {[%clk 0:02:33]} 10. Qd2 {[%clk 0:02:50]}  Be7 {[%clk 0:02:33]} 11. Be2 {[%clk 0:02:48]}  c6 {[%clk 0:02:23]} 12. O-O-O {[%clk 0:02:46]}  cxd5 {[%clk 0:02:20]} 13. exd5 {[%clk 0:02:47]}  a6 {[%clk 0:02:12]} 14. g5 {[%clk 0:02:46]}  hxg5 {[%clk 0:02:08]} 15. Nxg5 {[%clk 0:02:38]}  Nh5 {[%clk 0:01:54]} 16. Rdg1 {[%clk 0:02:37]}  Nhf4 {[%clk 0:01:52]} 17. Nge4 {[%clk 0:02:32]}  Rxh3 {[%clk 0:01:36]} 18. Rxh3 {[%clk 0:02:32]}  Bxh3 {[%clk 0:01:27]} 19. Bxf4 {[%clk 0:02:29]}  exf4 {[%clk 0:01:07]} 20. Qd4 {[%clk 0:02:29]}  Kf8 {[%clk 0:01:06]} 21. Rh1 {[%clk 0:02:17]}  Bf5 {[%clk 0:01:02]} 22. Rh7 {[%clk 0:02:16]}  f6 {[%clk 0:00:46]} 23. Bd3 {[%clk 0:02:16]}  Kg8 {[%clk 0:00:45]} 24. Rh5 {[%clk 0:02:10]}  Bg4 {[%clk 0:00:42]} 25. Rh2 {[%clk 0:02:06]}  Ne5 {[%clk 0:00:42]} 26. Rg2 {[%clk 0:01:56]}  f5 {[%clk 0:00:31]} 27. Nd2 {[%clk 0:01:48]}  f3 {[%clk 0:00:30]} 28. Rg1 {[%clk 0:01:39]}  Bf6 {[%clk 0:00:26]} 29. Bf1 {[%clk 0:01:39]}  Rc8 {[%clk 0:00:22]} 30. Qa7 {[%clk 0:01:34]}  Qe7 {[%clk 0:00:20]} 31. Kb1 {[%clk 0:01:28]}  Ng6 {[%clk 0:00:17]} 32. Bd3 {[%clk 0:01:00]}  Bxc3 {[%clk 0:00:15]} 33. bxc3 {[%clk 0:01:00]}  Nf4 {[%clk 0:00:13]} 34. Bxa6 {[%clk 0:00:57]}  Nxd5 {[%clk 0:00:11]} 35. Bc4 {[%clk 0:00:53]}  Rxc4 {[%clk 0:00:09]} 36. Nxc4 {[%clk 0:00:53]}  Nxc3+ {[%clk 0:00:08]} 37. Kb2 {[%clk 0:00:51]}  Qf6 {[%clk 0:00:07]} 38. Qb8+ {[%clk 0:00:52]}  Kh7 {[%clk 0:00:06]} 39. Rh1+ {[%clk 0:00:51]}  Kg6 {[%clk 0:00:06]} 40. Qe8+ {[%clk 0:00:51]}  Kg5 {[%clk 0:00:06]} 41. Qe3+ {[%clk 0:00:51]}  f4 {[%clk 0:00:03]} 42. Qxc3 {[%clk 0:00:51]}  Qe6 {[%clk 0:00:01]} 43. Qxg7+ {[%clk 0:00:51]}  Kf5 {[%clk 0:00:01]} 44. Qh7+ {[%clk 0:00:48]} 1-0

[Event "January 9 Early 2024"]
[Site "https://www.chess.com"]
[Date "2024.01.11"]
[Round "2"]
[White "Al-Tarboush, Ward"]
[Black "Drozdowski, Kacper"]
[Result "0-1"]
[Board "192"]
[TimeControl "180+1"]
[WhiteFideId "7601450"]
[BlackFideId "1136720"]
[WhiteElo "2631"]
[BlackElo "2974"]
[WhiteTeam "NOR"]
[BlackTeam "POL"]
[WhiteClock "0:00:11"]
[BlackClock "0:00:24"]

1. e4 {[%clk 0:03:00]}  c5 {[%clk 0:02:59]} 2. Nf3 {[%clk 0:03:01]}  e6 {[%clk 0:03:00]} 3. d4 {[%clk 0:03:01]}  cxd4 {[%clk 0:03:01]} 4. Nxd4 {[%clk 0:03:02]}  Nc6 {[%clk 0:03:01]} 5. Nc3 {[%clk 0:03:01]}  Qc7 {[%clk 0:03:01]} 6. Be3 {[%clk 0:03:01]}  a6 {[%clk 0:03:01]} 7. Qd2 {[%clk 0:03:02]}  Nf6 {[%clk 0:03:01]} 8. O-O-O {[%clk 0:03:02]}  Bb4 {[%clk 0:03:01]} 9. f3 {[%clk 0:03:02]}  Ne5 {[%clk 0:03:01]} 10. Nb3 {[%clk 0:02:42]}  b5 {[%clk 0:03:01]} 11. Qe1 {[%clk 0:02:40]}  Rb8 {[%clk 0:02:57]} 12. Bd4 {[%clk 0:02:35]}  Nc6 {[%clk 0:02:45]} 13. Bf2 {[%clk 0:02:02]}  Bd6 {[%clk 0:02:24]} 14. g3 {[%clk 0:01:58]}  Be7 {[%clk 0:02:14]} 15. f4 {[%clk 0:01:54]}  d6 {[%clk 0:02:10]} 16. h3 {[%clk 0:01:39]}  Bb7 {[%clk 0:02:05]} 17. Bg2 {[%clk 0:01:39]}  O-O {[%clk 0:02:03]} 18. g4 {[%clk 0:01:39]}  b4 {[%clk 0:01:52]} 19. Na4 {[%clk 0:01:37]}  d5 {[%clk 0:01:47]} 20. e5 {[%clk 0:01:33]}  Ne4 {[%clk 0:01:47]} 21. Bxe4 {[%clk 0:01:31]}  dxe4 {[%clk 0:01:48]} 22. Bb6 {[%clk 0:01:31]}  Qc8 {[%clk 0:01:47]} 23. Nbc5 {[%clk 0:01:28]}  Re8 {[%clk 0:01:30]} 24. Nxe4 {[%clk 0:01:22]}  b3 {[%clk 0:01:22]} 25. axb3 {[%clk 0:01:09]}  Nb4 {[%clk 0:01:22]} 26. c3 {[%clk 0:01:02]}  Qc6 {[%clk 0:01:14]} 27. Nd6 {[%clk 0:01:00]}  Rf8 {[%clk 0:01:04]} 28. Nxb7 {[%clk 0:00:55]}  Rxb7 {[%clk 0:01:02]} 29. Kb1 {[%clk 0:00:54]}  Nd5 {[%clk 0:01:00]} 30. Qe4 {[%clk 0:00:32]}  Rxb6 {[%clk 0:01:00]} 31. Qc4 {[%clk 0:00:29]}  Ne3 {[%clk 0:00:48]} 32. Qxc6 {[%clk 0:00:26]}  Rxc6 {[%clk 0:00:49]} 33. Rd3 {[%clk 0:00:26]}  Nd5 {[%clk 0:00:48]} 34. f5 {[%clk 0:00:26]}  Rb8 {[%clk 0:00:45]} 35. b4 {[%clk 0:00:25]}  h5 {[%clk 0:00:40]} 36. Rhd1 {[%clk 0:00:25]}  hxg4 {[%clk 0:00:32]} 37. hxg4 {[%clk 0:00:26]}  Rc4 {[%clk 0:00:33]} 38. Rd4 {[%clk 0:00:24]}  Rxd4 {[%clk 0:00:30]} 39. Rxd4 {[%clk 0:00:25]}  Kf8 {[%clk 0:00:27]} 40. Nc5 {[%clk 0:00:21]}  Bxc5 {[%clk 0:00:25]} 41. bxc5 {[%clk 0:00:22]}  Nxc3+ {[%clk 0:00:25]} 42. Kc2 {[%clk 0:00:22]}  Nd5 {[%clk 0:00:25]} 43. Ra4 {[%clk 0:00:22]}  Ke7 {[%clk 0:00:25]} 44. fxe6 {[%clk 0:00:17]}  fxe6 {[%clk 0:00:25]} 45. b3 {[%clk 0:00:11]}  Rb5 {[%clk 0:00:24]} 46. Rc4 {[%clk 0:00:11]}  Ne3+ {[%clk 0:00:24]} 0-1

[Event "January 9 Early 2024"]
[Site "https://www.chess.com"]
[Date "2024.01.11"]
[Round "2"]
[White "Luxama, Jacques Muller"]
[Black "Domingo Nunez, Alejandro"]
[Result "0-1"]
[Board "196"]
[TimeControl "180+1"]
[WhiteFideId "11900113"]
[BlackFideId "22245561"]
[WhiteElo "2006"]
[BlackElo "2698"]
[WhiteTeam "HAI"]
[BlackTeam "ESP"]
[WhiteClock "0:00:49"]
[BlackClock "0:00:18"]

1. e4 {[%clk 0:03:00]}  g6 {[%clk 0:02:58]} 2. d4 {[%clk 0:02:59]}  Bg7 {[%clk 0:02:58]} 3. h4 {[%clk 0:02:57]}  c6 {[%clk 0:02:59]} 4. h5 {[%clk 0:02:57]}  d6 {[%clk 0:02:47]} 5. hxg6 {[%clk 0:02:54]}  hxg6 {[%clk 0:02:46]} 6. Rxh8 {[%clk 0:02:54]}  Bxh8 {[%clk 0:02:47]} 7. Nf3 {[%clk 0:02:53]}  Nd7 {[%clk 0:02:41]} 8. Nc3 {[%clk 0:02:51]}  e5 {[%clk 0:02:40]} 9. dxe5 {[%clk 0:02:49]}  Nxe5 {[%clk 0:02:39]} 10. Nxe5 {[%clk 0:02:49]}  dxe5 {[%clk 0:02:39]} 11. Qxd8+ {[%clk 0:02:48]}  Kxd8 {[%clk 0:02:40]} 12. Bc4 {[%clk 0:02:48]}  Ke7 {[%clk 0:02:32]} 13. Be3 {[%clk 0:02:48]}  b6 {[%clk 0:02:32]} 14. O-O-O {[%clk 0:02:47]}  Be6 {[%clk 0:02:25]} 15. Bxe6 {[%clk 0:02:45]}  Kxe6 {[%clk 0:02:25]} 16. a4 {[%clk 0:02:35]}  Nf6 {[%clk 0:02:21]} 17. a5 {[%clk 0:02:35]}  Ng4 {[%clk 0:01:43]} 18. axb6 {[%clk 0:02:32]}  Nxe3 {[%clk 0:01:43]} 19. fxe3 {[%clk 0:02:32]}  axb6 {[%clk 0:01:43]} 20. Kb1 {[%clk 0:02:29]}  Bf6 {[%clk 0:01:42]} 21. b3 {[%clk 0:02:28]}  Bg5 {[%clk 0:01:40]} 22. Rd3 {[%clk 0:02:28]}  b5 {[%clk 0:01:36]} 23. Na2 {[%clk 0:02:20]}  Be7 {[%clk 0:01:36]} 24. Kb2 {[%clk 0:02:06]}  b4 {[%clk 0:01:21]} 25. Nc1 {[%clk 0:02:02]}  Rh8 {[%clk 0:01:19]} 26. Rd1 {[%clk 0:01:56]}  Rh2 {[%clk 0:01:15]} 27. Rd2 {[%clk 0:01:53]}  Bc5 {[%clk 0:01:12]} 28. Re2 {[%clk 0:01:53]}  Rh4 {[%clk 0:00:59]} 29. Nd3 {[%clk 0:01:52]}  Be7 {[%clk 0:01:00]} 30. Nf2 {[%clk 0:01:50]}  Rh2 {[%clk 0:00:54]} 31. Ng4 {[%clk 0:01:49]}  Rh1 {[%clk 0:00:54]} 32. Nf2 {[%clk 0:01:46]}  Rg1 {[%clk 0:00:52]} 33. Nh3 {[%clk 0:01:45]}  Rf1 {[%clk 0:00:51]} 34. Nf2 {[%clk 0:01:38]}  f5 {[%clk 0:00:48]} 35. exf5+ {[%clk 0:01:37]}  gxf5 {[%clk 0:00:49]} 36. e4 {[%clk 0:01:36]}  f4 {[%clk 0:00:48]} 37. Nd3 {[%clk 0:01:32]}  Rg1 {[%clk 0:00:37]} 38. Ne1 {[%clk 0:01:28]}  Bc5 {[%clk 0:00:37]} 39. Nf3 {[%clk 0:01:25]}  Bd4+ {[%clk 0:00:36]} 40. Nxd4+ {[%clk 0:01:20]}  exd4 {[%clk 0:00:37]} 41. e5 {[%clk 0:01:08]}  c5 {[%clk 0:00:35]} 42. Re4 {[%clk 0:01:08]}  Rf1 {[%clk 0:00:31]} 43. Re2 {[%clk 0:01:06]}  Rh1 {[%clk 0:00:17]} 44. Re4 {[%clk 0:01:05]}  Kf5 {[%clk 0:00:15]} 45. Re2 {[%clk 0:01:02]}  Rh6 {[%clk 0:00:15]} 46. Kc1 {[%clk 0:01:00]}  Re6 {[%clk 0:00:15]} 47. Kd2 {[%clk 0:00:57]}  Rxe5 {[%clk 0:00:16]} 48. Rxe5+ {[%clk 0:00:53]}  Kxe5 {[%clk 0:00:17]} 49. Kd3 {[%clk 0:00:53]}  Kd5 {[%clk 0:00:17]} 50. Kd2 {[%clk 0:00:52]}  c4 {[%clk 0:00:17]} 51. Ke2 {[%clk 0:00:49]}  d3+ {[%clk 0:00:16]} 52. cxd3 {[%clk 0:00:48]}  cxb3 {[%clk 0:00:16]} 53. Kd2 {[%clk 0:00:49]}  Kd4 {[%clk 0:00:16]} 54. Kc1 {[%clk 0:00:47]}  Kxd3 {[%clk 0:00:16]} 55. Kb2 {[%clk 0:00:48]}  Ke3 {[%clk 0:00:17]} 56. Kxb3 {[%clk 0:00:48]}  Kf2 {[%clk 0:00:17]} 57. Kxb4 {[%clk 0:00:49]}  Kxg2 {[%clk 0:00:18]} 0-1

[Event "January 9 Early 2024"]
[Site "https://www.chess.com"]
[Date "2024.01.11"]
[Round "2"]
[White "Zhuk, Valeriy"]
[Black "Sakun, Volodymyr"]
[Result "1-0"]
[Board "198"]
[TimeControl "180+1"]
[WhiteFideId "24151254"]
[BlackFideId "14114062"]
[WhiteElo "2393"]
[BlackElo "2613"]
[WhiteTeam "RUS"]
[BlackTeam "UKR"]
[WhiteClock "0:00:16"]
[BlackClock "0:00:04"]

1. e4 {[%clk 0:02:08]}  e5 {[%clk 0:02:58]} 2. Nf3 {[%clk 0:02:08]}  Nc6 {[%clk 0:02:58]} 3. Bb5 {[%clk 0:02:09]}  a6 {[%clk 0:02:58]} 4. Bxc6 {[%clk 0:02:08]}  dxc6 {[%clk 0:02:58]} 5. O-O {[%clk 0:02:09]}  Qf6 {[%clk 0:02:57]} 6. d4 {[%clk 0:02:08]}  exd4 {[%clk 0:02:57]} 7. Nxd4 {[%clk 0:02:02]}  Bd7 {[%clk 0:02:50]} 8. Be3 {[%clk 0:01:34]}  O-O-O {[%clk 0:02:46]} 9. Qe2 {[%clk 0:01:23]}  Qg6 {[%clk 0:02:41]} 10. Nd2 {[%clk 0:01:21]}  h5 {[%clk 0:02:12]} 11. f4 {[%clk 0:01:19]}  f6 {[%clk 0:01:31]} 12. f5 {[%clk 0:00:59]}  Qf7 {[%clk 0:01:21]} 13. N2f3 {[%clk 0:00:58]}  Bd6 {[%clk 0:01:18]} 14. c3 {[%clk 0:00:54]}  Ne7 {[%clk 0:01:18]} 15. b4 {[%clk 0:00:52]}  g6 {[%clk 0:01:16]} 16. fxg6 {[%clk 0:00:44]}  Nxg6 {[%clk 0:01:17]} 17. a4 {[%clk 0:00:39]}  Nf4 {[%clk 0:00:57]} 18. Qd2 {[%clk 0:00:38]}  Ne6 {[%clk 0:00:47]} 19. b5 {[%clk 0:00:37]}  cxb5 {[%clk 0:00:45]} 20. axb5 {[%clk 0:00:37]}  Bxb5 {[%clk 0:00:44]} 21. Nxb5 {[%clk 0:00:37]}  axb5 {[%clk 0:00:44]} 22. e5 {[%clk 0:00:36]}  Ba3 {[%clk 0:00:29]} 23. Qa2 {[%clk 0:00:32]}  b4 {[%clk 0:00:13]} 24. exf6 {[%clk 0:00:17]}  Qe8 {[%clk 0:00:05]} 25. f7 {[%clk 0:00:16]}  Qxf7 {[%clk 0:00:05]} 26. Ne5 {[%clk 0:00:16]}  Qg7 {[%clk 0:00:05]} 27. Qxe6+ {[%clk 0:00:15]}  Kb8 {[%clk 0:00:05]} 28. Bd4 {[%clk 0:00:15]}  Rhe8 {[%clk 0:00:04]} 29. Qxe8 {[%clk 0:00:14]}  Rxe8 {[%clk 0:00:04]} 30. Nc6+ {[%clk 0:00:15]}  bxc6 {[%clk 0:00:05]} 31. Bxg7 {[%clk 0:00:15]}  Re2 {[%clk 0:00:04]} 32. cxb4 {[%clk 0:00:15]}  Bb2 {[%clk 0:00:05]} 33. Bxb2 {[%clk 0:00:14]}  Rxb2 {[%clk 0:00:05]} 34. Rab1 {[%clk 0:00:14]}  Rc2 {[%clk 0:00:05]} 35. Rf5 {[%clk 0:00:15]}  Rd2 {[%clk 0:00:05]} 36. Rxh5 {[%clk 0:00:15]}  Re2 {[%clk 0:00:05]} 37. Rg5 {[%clk 0:00:15]}  Kb7 {[%clk 0:00:04]} 38. h4 {[%clk 0:00:16]} 1-0

[Event "January 9 Early 2024"]
[Site "https://www.chess.com"]
[Date "2024.01.11"]
[Round "2"]
[White "Travkina, Anastasia"]
[Black "Nikulina, Alena"]
[Result "1-0"]
[Board "199"]
[TimeControl "180+1"]
[WhiteFideId "24129151"]
[BlackFideId "4172051"]
[WhiteElo "2447"]
[BlackElo "2108"]
[WhiteTeam "RUS"]
[BlackTeam "RUS"]
[WhiteClock "0:00:47"]
[BlackClock "0:00:09"]

1. e4 {[%clk 0:03:00]}  c5 {[%clk 0:02:56]} 2. Nf3 {[%clk 0:03:01]}  e6 {[%clk 0:02:50]} 3. d4 {[%clk 0:03:01]}  cxd4 {[%clk 0:02:50]} 4. Nxd4 {[%clk 0:03:02]}  Nf6 {[%clk 0:02:51]} 5. Nc3 {[%clk 0:03:01]}  Nc6 {[%clk 0:02:51]} 6. Ndb5 {[%clk 0:02:58]}  d6 {[%clk 0:02:50]} 7. Bf4 {[%clk 0:02:57]}  e5 {[%clk 0:02:50]} 8. Bg5 {[%clk 0:02:57]}  a6 {[%clk 0:02:50]} 9. Na3 {[%clk 0:02:57]}  b5 {[%clk 0:02:51]} 10. Nd5 {[%clk 0:02:58]}  Be7 {[%clk 0:02:51]} 11. Bxf6 {[%clk 0:02:58]}  Bxf6 {[%clk 0:02:51]} 12. c4 {[%clk 0:02:59]}  b4 {[%clk 0:02:48]} 13. Nc2 {[%clk 0:02:59]}  Rb8 {[%clk 0:02:45]} 14. Qf3 {[%clk 0:02:59]}  O-O {[%clk 0:02:36]} 15. b3 {[%clk 0:02:59]}  Bg5 {[%clk 0:02:34]} 16. h4 {[%clk 0:02:59]}  Bh6 {[%clk 0:02:22]} 17. Bd3 {[%clk 0:02:49]}  Ne7 {[%clk 0:02:15]} 18. Nce3 {[%clk 0:02:41]}  Be6 {[%clk 0:02:07]} 19. g4 {[%clk 0:02:24]}  Bxe3 {[%clk 0:02:06]} 20. Nxe3 {[%clk 0:02:23]}  Nc6 {[%clk 0:02:02]} 21. Nc2 {[%clk 0:02:15]}  a5 {[%clk 0:02:01]} 22. Rd1 {[%clk 0:02:13]}  Qe7 {[%clk 0:02:00]} 23. Qg3 {[%clk 0:02:08]}  a4 {[%clk 0:01:54]} 24. O-O {[%clk 0:02:08]}  axb3 {[%clk 0:01:54]} 25. axb3 {[%clk 0:02:08]}  Ra8 {[%clk 0:01:54]} 26. Ra1 {[%clk 0:02:07]}  Qb7 {[%clk 0:01:49]} 27. h5 {[%clk 0:01:46]}  Rxa1 {[%clk 0:01:41]} 28. Rxa1 {[%clk 0:01:46]}  Ra8 {[%clk 0:01:42]} 29. Rxa8+ {[%clk 0:01:46]}  Qxa8 {[%clk 0:01:42]} 30. h6 {[%clk 0:01:46]}  Qa2 {[%clk 0:01:26]} 31. Qh4 {[%clk 0:01:33]}  Qb1+ {[%clk 0:01:14]} 32. Kh2 {[%clk 0:01:31]}  Qc1 {[%clk 0:00:42]} 33. Nxb4 {[%clk 0:01:23]}  Qf4+ {[%clk 0:00:30]} 34. Kg1 {[%clk 0:01:23]}  g5 {[%clk 0:00:29]} 35. Qh3 {[%clk 0:01:16]}  Nxb4 {[%clk 0:00:29]} 36. Be2 {[%clk 0:01:15]}  Nc2 {[%clk 0:00:26]} 37. Qc3 {[%clk 0:01:06]}  Nd4 {[%clk 0:00:25]} 38. Kf1 {[%clk 0:01:07]}  Nxe2 {[%clk 0:00:24]} 39. Kxe2 {[%clk 0:01:07]}  Qxe4+ {[%clk 0:00:25]} 40. Kf1 {[%clk 0:01:06]}  Bxg4 {[%clk 0:00:23]} 41. Kg1 {[%clk 0:01:01]}  Qb1+ {[%clk 0:00:20]} 42. Kh2 {[%clk 0:01:01]}  Qe4 {[%clk 0:00:20]} 43. c5 {[%clk 0:00:58]}  Qf4+ {[%clk 0:00:19]} 44. Kg1 {[%clk 0:00:57]}  dxc5 {[%clk 0:00:18]} 45. Qxc5 {[%clk 0:00:56]}  Qd2 {[%clk 0:00:12]} 46. Qxe5 {[%clk 0:00:50]}  Qc1+ {[%clk 0:00:11]} 47. Kg2 {[%clk 0:00:48]}  Qc6+ {[%clk 0:00:11]} 48. Kh2 {[%clk 0:00:48]}  Qg6 {[%clk 0:00:09]} 49. Qe8# {[%clk 0:00:47]} 1-0

[Event "January 9 Early 2024"]
[Site "https://www.chess.com"]
[Date "2024.01.11"]
[Round "2"]
[White "Grutter, Tim"]
[Black "Santiago, Yago De Moura"]
[Result "1-0"]
[Board "200"]
[TimeControl "180+1"]
[WhiteFideId "1057472"]
[BlackFideId "2103877"]
[WhiteElo "2561"]
[BlackElo "2800"]
[WhiteTeam "NED"]
[BlackTeam "BRA"]
[WhiteClock "0:00:02"]
[BlackClock "0:00:12"]

1. e4 {[%clk 0:03:00]}  e6 {[%clk 0:03:00]} 2. d4 {[%clk 0:02:56]}  d5 {[%clk 0:03:01]} 3. Bd3 {[%clk 0:02:47]}  dxe4 {[%clk 0:03:00]} 4. Bxe4 {[%clk 0:02:48]}  Nf6 {[%clk 0:03:00]} 5. Bf3 {[%clk 0:02:46]}  c5 {[%clk 0:03:01]} 6. Ne2 {[%clk 0:02:47]}  cxd4 {[%clk 0:03:01]} 7. Qxd4 {[%clk 0:02:48]}  Nbd7 {[%clk 0:03:01]} 8. O-O {[%clk 0:02:47]}  Bc5 {[%clk 0:03:01]} 9. Qd1 {[%clk 0:02:44]}  O-O {[%clk 0:02:59]} 10. b3 {[%clk 0:02:42]}  Ne5 {[%clk 0:02:58]} 11. Ng3 {[%clk 0:02:22]}  Nxf3+ {[%clk 0:02:53]} 12. Qxf3 {[%clk 0:02:21]}  h6 {[%clk 0:02:41]} 13. Bb2 {[%clk 0:02:20]}  Be7 {[%clk 0:02:27]} 14. c4 {[%clk 0:02:20]}  Qc7 {[%clk 0:02:25]} 15. Nc3 {[%clk 0:02:19]}  a6 {[%clk 0:02:25]} 16. Rad1 {[%clk 0:02:18]}  b6 {[%clk 0:02:22]} 17. Nce4 {[%clk 0:01:51]}  Nxe4 {[%clk 0:02:18]} 18. Qxe4 {[%clk 0:01:47]}  Ra7 {[%clk 0:01:44]} 19. Nh5 {[%clk 0:01:28]}  f5 {[%clk 0:01:32]} 20. Qd4 {[%clk 0:01:24]}  Bc5 {[%clk 0:01:05]} 21. Qh4 {[%clk 0:01:22]}  Be7 {[%clk 0:00:53]} 22. Qh3 {[%clk 0:01:09]}  Rf7 {[%clk 0:00:52]} 23. Rfe1 {[%clk 0:00:46]}  Bb4 {[%clk 0:00:45]} 24. Re3 {[%clk 0:00:36]}  Kh7 {[%clk 0:00:44]} 25. Rg3 {[%clk 0:00:31]}  Bf8 {[%clk 0:00:44]} 26. Rgd3 {[%clk 0:00:20]}  e5 {[%clk 0:00:42]} 27. Rd5 {[%clk 0:00:19]}  e4 {[%clk 0:00:33]} 28. Qe3 {[%clk 0:00:13]}  Bc5 {[%clk 0:00:29]} 29. Qe2 {[%clk 0:00:11]}  Qe7 {[%clk 0:00:29]} 30. Nf4 {[%clk 0:00:11]}  Qg5 {[%clk 0:00:29]} 31. g3 {[%clk 0:00:10]}  a5 {[%clk 0:00:29]} 32. h4 {[%clk 0:00:10]}  Qe7 {[%clk 0:00:29]} 33. Qh5 {[%clk 0:00:10]}  e3 {[%clk 0:00:26]} 34. Qg6+ {[%clk 0:00:09]}  Kg8 {[%clk 0:00:23]} 35. Rd8+ {[%clk 0:00:07]}  Rf8 {[%clk 0:00:24]} 36. Rxf8+ {[%clk 0:00:08]}  Kxf8 {[%clk 0:00:23]} 37. Bxg7+ {[%clk 0:00:03]}  Qxg7 {[%clk 0:00:13]} 38. Rd8+ {[%clk 0:00:03]}  Ke7 {[%clk 0:00:13]} 39. Qe8+ {[%clk 0:00:01]}  Kf6 {[%clk 0:00:12]} 40. Nh5# {[%clk 0:00:02]} 1-0

[Event "January 9 Early 2024"]
[Site "https://www.chess.com"]
[Date "2024.01.11"]
[Round "2"]
[White "Cuenca Jimenez, Jose Fernando"]
[Black "Firouzja, Alireza"]
[Result "0-1"]
[Board "203"]
[TimeControl "180+1"]
[WhiteFideId "2255570"]
[BlackFideId "12573981"]
[WhiteElo "2680"]
[BlackElo "3133"]
[WhiteTeam "ESP"]
[BlackTeam "FRA"]
[WhiteClock "0:00:06"]
[BlackClock "0:00:21"]

1. d4 {[%clk 0:03:00]}  Nf6 {[%clk 0:02:59]} 2. Bf4 {[%clk 0:03:01]}  g6 {[%clk 0:02:56]} 3. Nc3 {[%clk 0:03:00]}  d5 {[%clk 0:02:55]} 4. e3 {[%clk 0:03:00]}  Bg7 {[%clk 0:02:55]} 5. h4 {[%clk 0:03:00]}  Bg4 {[%clk 0:02:42]} 6. Be2 {[%clk 0:02:53]}  Bxe2 {[%clk 0:02:40]} 7. Qxe2 {[%clk 0:02:52]}  h5 {[%clk 0:02:39]} 8. Qb5+ {[%clk 0:02:48]}  Nbd7 {[%clk 0:02:30]} 9. Nxd5 {[%clk 0:02:44]}  Nxd5 {[%clk 0:02:22]} 10. Qxd5 {[%clk 0:02:45]}  c6 {[%clk 0:02:22]} 11. Qb3 {[%clk 0:02:44]}  e5 {[%clk 0:02:22]} 12. dxe5 {[%clk 0:02:43]}  Nxe5 {[%clk 0:02:21]} 13. Bxe5 {[%clk 0:02:40]}  Bxe5 {[%clk 0:02:19]} 14. Nf3 {[%clk 0:02:39]}  Bf6 {[%clk 0:02:14]} 15. Qxb7 {[%clk 0:02:15]}  O-O {[%clk 0:02:14]} 16. O-O {[%clk 0:02:13]}  Rb8 {[%clk 0:02:14]} 17. Qxc6 {[%clk 0:02:10]}  Rxb2 {[%clk 0:02:14]} 18. Rad1 {[%clk 0:01:56]}  Qb6 {[%clk 0:02:14]} 19. Qxb6 {[%clk 0:01:48]}  axb6 {[%clk 0:02:15]} 20. Rd6 {[%clk 0:01:48]}  Kg7 {[%clk 0:02:13]} 21. Ng5 {[%clk 0:01:30]}  Rc8 {[%clk 0:02:08]} 22. Rc1 {[%clk 0:01:22]}  b5 {[%clk 0:01:46]} 23. Rd5 {[%clk 0:01:10]}  b4 {[%clk 0:01:35]} 24. Rb5 {[%clk 0:01:02]}  Rc4 {[%clk 0:01:34]} 25. g3 {[%clk 0:00:56]}  Rxa2 {[%clk 0:01:31]} 26. Rb1 {[%clk 0:00:56]}  Bxg5 {[%clk 0:01:12]} 27. hxg5 {[%clk 0:00:43]}  Rcxc2 {[%clk 0:01:13]} 28. Rf1 {[%clk 0:00:37]}  Rab2 {[%clk 0:01:11]} 29. Kg2 {[%clk 0:00:36]}  b3 {[%clk 0:01:08]} 30. Kf3 {[%clk 0:00:36]}  Rd2 {[%clk 0:00:59]} 31. Rb7 {[%clk 0:00:29]}  Rd5 {[%clk 0:00:48]} 32. Kf4 {[%clk 0:00:27]}  Rf5+ {[%clk 0:00:46]} 33. Ke4 {[%clk 0:00:27]}  Rxg5 {[%clk 0:00:44]} 34. f4 {[%clk 0:00:14]}  Rxg3 {[%clk 0:00:31]} 35. Rd1 {[%clk 0:00:13]}  Re2 {[%clk 0:00:27]} 36. Rxb3 {[%clk 0:00:12]}  h4 {[%clk 0:00:23]} 37. Rh1 {[%clk 0:00:09]}  h3 {[%clk 0:00:23]} 38. Rb5 {[%clk 0:00:06]}  Rgxe3+ {[%clk 0:00:21]} 39. Kd4 {[%clk 0:00:06]}  Rf3 {[%clk 0:00:21]} 0-1